[Event "Late-Titled-Tuesday-Blitz-April-16-2024"]
[Site "Chess.com"]
[Date "2024.04.16"]
[Round "10"]
[White "Misterfox120"]
[Black "Rawnsdale"]
[Result "1-0"]
[WhiteElo "2414"]
[BlackElo "2482"]
[TimeControl "180+1"]
[EndTime "15:51:57 PDT"]
[Termination "Misterfox120 won by checkmate"]

1. d4 {[%clk 0:03:00.9]} 1... d5 {[%clk 0:02:38.9]} 2. Nc3 {[%clk 0:03:01.8]}
2... Nf6 {[%clk 0:02:38]} 3. Bf4 {[%clk 0:02:58.5]} 3... a6 {[%clk 0:02:38]} 4.
e3 {[%clk 0:02:57.8]} 4... Bf5 {[%clk 0:02:37.5]} 5. Nf3 {[%clk 0:02:56.8]} 5...
e6 {[%clk 0:02:37.5]} 6. Ne5 {[%clk 0:02:56.3]} 6... Nbd7 {[%clk 0:02:36.9]} 7.
g4 {[%clk 0:02:52.9]} 7... Bg6 {[%clk 0:02:27.7]} 8. h4 {[%clk 0:02:49.2]} 8...
h5 {[%clk 0:02:15.4]} 9. Nxg6 {[%clk 0:02:41]} 9... fxg6 {[%clk 0:02:16.3]} 10.
Bd3 {[%clk 0:02:41.1]} 10... Kf7 {[%clk 0:02:15.7]} 11. g5 {[%clk 0:02:40.1]}
11... Nh7 {[%clk 0:02:04.7]} 12. Qf3 {[%clk 0:02:36.5]} 12... Kg8 {[%clk
0:01:36]} 13. Bxg6 {[%clk 0:02:33.1]} 13... Bb4 {[%clk 0:01:35.2]} 14. Bd6
{[%clk 0:02:11.3]} 14... Bxc3+ {[%clk 0:01:21.3]} 15. bxc3 {[%clk 0:02:12.2]}
15... Ndf6 {[%clk 0:01:21.4]} 16. gxf6 {[%clk 0:01:59]} 16... Qxd6 {[%clk
0:01:20.7]} 17. fxg7 {[%clk 0:01:39.1]} 17... Kxg7 {[%clk 0:01:21.6]} 18. Rg1
{[%clk 0:01:31.3]} 18... Raf8 {[%clk 0:00:44.7]} 19. Bf7+ {[%clk 0:01:25.5]}
19... Kh6 {[%clk 0:00:44.2]} 20. Rg6# {[%clk 0:01:23]} 1-0

[Event "Late-Titled-Tuesday-Blitz-April-16-2024"]
[Site "Chess.com"]
[Date "2024.04.16"]
[Round "10"]
[White "mishanick"]
[Black "Gabrielian_Artur"]
[Result "1-0"]
[WhiteElo "3045"]
[BlackElo "2805"]
[TimeControl "180+1"]
[EndTime "15:52:02 PDT"]
[Termination "mishanick won by resignation"]

1. d4 {[%clk 0:02:58.2]} 1... Nf6 {[%clk 0:03:00.5]} 2. c4 {[%clk 0:02:57.9]}
2... g6 {[%clk 0:03:01.1]} 3. Nc3 {[%clk 0:02:58]} 3... Bg7 {[%clk 0:03:01.5]}
4. e4 {[%clk 0:02:56]} 4... d6 {[%clk 0:03:01.6]} 5. Bd3 {[%clk 0:02:54.2]} 5...
O-O {[%clk 0:03:01.1]} 6. Nge2 {[%clk 0:02:54.8]} 6... c5 {[%clk 0:03:00.7]} 7.
d5 {[%clk 0:02:52.2]} 7... e6 {[%clk 0:03:01]} 8. Bg5 {[%clk 0:02:52.6]} 8...
exd5 {[%clk 0:02:58.9]} 9. Nxd5 {[%clk 0:02:53.5]} 9... Nbd7 {[%clk 0:02:57.9]}
10. O-O {[%clk 0:02:52.4]} 10... h6 {[%clk 0:02:57.1]} 11. Bh4 {[%clk
0:02:51.7]} 11... Nb6 {[%clk 0:02:40.8]} 12. Nec3 {[%clk 0:02:49]} 12... Nbxd5
{[%clk 0:02:39.7]} 13. Nxd5 {[%clk 0:02:49.9]} 13... Be6 {[%clk 0:02:38.8]} 14.
Ne3 {[%clk 0:02:48.2]} 14... Qb6 {[%clk 0:02:27.9]} 15. Rb1 {[%clk 0:02:47.8]}
15... Rfe8 {[%clk 0:02:09.5]} 16. f4 {[%clk 0:02:42.7]} 16... Bd7 {[%clk
0:02:09.7]} 17. Qf3 {[%clk 0:02:43]} 17... Bc6 {[%clk 0:02:08.2]} 18. Nd5 {[%clk
0:02:40.8]} 18... Bxd5 {[%clk 0:02:08]} 19. cxd5 {[%clk 0:02:36.9]} 19... c4+
{[%clk 0:02:02.7]} 20. Bf2 {[%clk 0:02:35.9]} 20... Qa6 {[%clk 0:02:00.4]} 21.
Bc2 {[%clk 0:02:35.4]} 21... Qxa2 {[%clk 0:01:58.5]} 22. e5 {[%clk 0:02:30.2]}
22... dxe5 {[%clk 0:01:51.6]} 23. fxe5 {[%clk 0:02:31.1]} 23... Nd7 {[%clk
0:01:26.8]} 24. Bd4 {[%clk 0:02:26.3]} 24... Nxe5 {[%clk 0:00:18.1]} 25. Bxe5
{[%clk 0:02:26.2]} 25... Bxe5 {[%clk 0:00:06.1]} 26. Qxf7+ {[%clk 0:02:25.4]}
26... Kh8 {[%clk 0:00:06.5]} 27. Qxg6 {[%clk 0:02:24.5]} 27... Re7 {[%clk
0:00:06.9]} 28. Qxh6+ {[%clk 0:02:24.3]} 28... Kg8 {[%clk 0:00:07.3]} 29. d6
{[%clk 0:02:23.8]} 29... Rg7 {[%clk 0:00:06.4]} 30. Qe6+ {[%clk 0:02:23.9]}
30... Kh8 {[%clk 0:00:06.9]} 31. Qxe5 {[%clk 0:02:24.2]} 1-0

[Event "Late-Titled-Tuesday-Blitz-April-16-2024"]
[Site "Chess.com"]
[Date "2024.04.16"]
[Round "10"]
[White "KaydenTroffChess"]
[Black "Tolyanius"]
[Result "1-0"]
[WhiteElo "2860"]
[BlackElo "2645"]
[TimeControl "180+1"]
[EndTime "15:52:05 PDT"]
[Termination "KaydenTroffChess won by resignation"]

1. d4 {[%clk 0:03:00.9]} 1... Nf6 {[%clk 0:02:59.6]} 2. Nf3 {[%clk 0:03:01.3]}
2... c5 {[%clk 0:03:00.3]} 3. dxc5 {[%clk 0:03:00.8]} 3... Na6 {[%clk
0:02:55.9]} 4. Be3 {[%clk 0:03:00.8]} 4... e6 {[%clk 0:02:53.4]} 5. g3 {[%clk
0:03:01]} 5... Nxc5 {[%clk 0:02:52.6]} 6. Bg2 {[%clk 0:03:00.7]} 6... d5 {[%clk
0:02:46.3]} 7. O-O {[%clk 0:02:59.7]} 7... Bd6 {[%clk 0:02:43.4]} 8. c4 {[%clk
0:02:59.4]} 8... O-O {[%clk 0:02:32.4]} 9. Nc3 {[%clk 0:02:59]} 9... dxc4 {[%clk
0:02:31.3]} 10. Nd2 {[%clk 0:02:46.6]} 10... Ng4 {[%clk 0:02:29.2]} 11. Nxc4
{[%clk 0:02:36.6]} 11... Nxe3 {[%clk 0:02:26.5]} 12. Nxe3 {[%clk 0:02:36.7]}
12... Be7 {[%clk 0:02:20.6]} 13. b4 {[%clk 0:02:31.3]} 13... Na6 {[%clk
0:02:18.6]} 14. a3 {[%clk 0:02:29.5]} 14... Bf6 {[%clk 0:02:12.3]} 15. Qb3
{[%clk 0:02:27.7]} 15... Nc7 {[%clk 0:02:06.1]} 16. Rfd1 {[%clk 0:02:25]} 16...
Qe7 {[%clk 0:02:06.6]} 17. Rac1 {[%clk 0:02:24.1]} 17... a5 {[%clk 0:02:05.8]}
18. b5 {[%clk 0:02:18.5]} 18... Bxc3 {[%clk 0:02:03.2]} 19. Rxc3 {[%clk
0:02:17.9]} 19... a4 {[%clk 0:02:02.9]} 20. Qb2 {[%clk 0:02:18.2]} 20... Ra5
{[%clk 0:01:56.4]} 21. Rdc1 {[%clk 0:02:07]} 21... Rxb5 {[%clk 0:01:38.7]} 22.
Qc2 {[%clk 0:02:00.2]} 22... Na6 {[%clk 0:01:21.1]} 23. Rxc8 {[%clk 0:01:56.1]}
23... Qxa3 {[%clk 0:01:19.7]} 24. Rxf8+ {[%clk 0:01:39]} 24... Qxf8 {[%clk
0:01:20.6]} 25. Qxa4 {[%clk 0:01:37.9]} 25... Qb4 {[%clk 0:01:20.8]} 26. Qxb5
{[%clk 0:01:00.2]} 1-0

[Event "Late-Titled-Tuesday-Blitz-April-16-2024"]
[Site "Chess.com"]
[Date "2024.04.16"]
[Round "10"]
[White "lamomiajunior"]
[Black "Sanan_Sjugirov"]
[Result "0-1"]
[WhiteElo "2734"]
[BlackElo "3000"]
[TimeControl "180+1"]
[EndTime "15:52:14 PDT"]
[Termination "Sanan_Sjugirov won by resignation"]

1. d4 {[%clk 0:03:00.9]} 1... Nf6 {[%clk 0:02:59.6]} 2. Nc3 {[%clk 0:03:01.2]}
2... d5 {[%clk 0:02:56.8]} 3. Bf4 {[%clk 0:03:01.7]} 3... a6 {[%clk 0:02:54.3]}
4. e3 {[%clk 0:03:01.9]} 4... b5 {[%clk 0:02:53.7]} 5. h4 {[%clk 0:03:01.3]}
5... e6 {[%clk 0:02:49.8]} 6. g4 {[%clk 0:03:01.3]} 6... c5 {[%clk 0:02:47.8]}
7. g5 {[%clk 0:03:00.9]} 7... Nfd7 {[%clk 0:02:48]} 8. Bg2 {[%clk 0:03:00.7]}
8... Nc6 {[%clk 0:02:47.6]} 9. Nf3 {[%clk 0:03:00.2]} 9... Bb7 {[%clk
0:02:47.2]} 10. h5 {[%clk 0:02:58]} 10... b4 {[%clk 0:02:42.1]} 11. Ne2 {[%clk
0:02:57.9]} 11... Qb6 {[%clk 0:02:33.8]} 12. Ng3 {[%clk 0:02:57.1]} 12... Be7
{[%clk 0:02:17.9]} 13. c3 {[%clk 0:02:51.3]} 13... a5 {[%clk 0:02:16.3]} 14. O-O
{[%clk 0:02:49.2]} 14... g6 {[%clk 0:02:09.5]} 15. h6 {[%clk 0:02:44.6]} 15...
O-O {[%clk 0:02:09.1]} 16. Re1 {[%clk 0:02:44.2]} 16... Rfe8 {[%clk 0:02:07.2]}
17. e4 {[%clk 0:02:36.1]} 17... dxe4 {[%clk 0:01:59.8]} 18. Nxe4 {[%clk
0:02:37]} 18... cxd4 {[%clk 0:02:00]} 19. cxd4 {[%clk 0:02:35.6]} 19... Qb5
{[%clk 0:01:57.8]} 20. Nd6 {[%clk 0:02:22.2]} 20... Bxd6 {[%clk 0:01:57.8]} 21.
Bxd6 {[%clk 0:02:23.1]} 21... Qf5 {[%clk 0:01:53.4]} 22. Rc1 {[%clk 0:02:16.3]}
22... Rac8 {[%clk 0:01:52.2]} 23. Qd2 {[%clk 0:02:12.3]} 23... Red8 {[%clk
0:01:17.6]} 24. Nh4 {[%clk 0:02:06.2]} 24... Qb5 {[%clk 0:01:01]} 25. Qf4 {[%clk
0:02:04.9]} 25... Ba8 {[%clk 0:00:43.8]} 26. Rc5 {[%clk 0:02:04.1]} 26... Qd3
{[%clk 0:00:41.2]} 27. Rec1 {[%clk 0:01:58.5]} 27... Nxc5 {[%clk 0:00:31.2]} 28.
Qf6 {[%clk 0:01:58.5]} 28... Qxd4 {[%clk 0:00:31.4]} 0-1

[Event "Late-Titled-Tuesday-Blitz-April-16-2024"]
[Site "Chess.com"]
[Date "2024.04.16"]
[Round "10"]
[White "AradNazari"]
[Black "SpeedofLight0"]
[Result "0-1"]
[WhiteElo "2728"]
[BlackElo "3034"]
[TimeControl "180+1"]
[EndTime "15:52:20 PDT"]
[Termination "SpeedofLight0 won by checkmate"]

1. e4 {[%clk 0:03:00.1]} 1... Nc6 {[%clk 0:02:57.7]} 2. d4 {[%clk 0:02:59.8]}
2... d5 {[%clk 0:02:57.3]} 3. e5 {[%clk 0:03:00.3]} 3... Bf5 {[%clk 0:02:57.6]}
4. f4 {[%clk 0:03:00.5]} 4... e6 {[%clk 0:02:57.7]} 5. c3 {[%clk 0:02:57.9]}
5... h5 {[%clk 0:02:56.3]} 6. Nf3 {[%clk 0:02:57.3]} 6... h4 {[%clk 0:02:54.5]}
7. h3 {[%clk 0:02:56.4]} 7... Nge7 {[%clk 0:02:54.3]} 8. Be2 {[%clk 0:02:55.4]}
8... Be4 {[%clk 0:02:54.2]} 9. Nbd2 {[%clk 0:02:52.7]} 9... Nf5 {[%clk
0:02:53.9]} 10. Nxe4 {[%clk 0:02:44]} 10... dxe4 {[%clk 0:02:54.8]} 11. Ng5
{[%clk 0:02:44.7]} 11... Ng3 {[%clk 0:02:52]} 12. Rg1 {[%clk 0:02:42.9]} 12...
Be7 {[%clk 0:02:51.7]} 13. Qb3 {[%clk 0:02:17.2]} 13... Qd5 {[%clk 0:02:27.5]}
14. Bc4 {[%clk 0:02:06.2]} 14... Qd7 {[%clk 0:02:19.8]} 15. Qxb7 {[%clk
0:01:20]} 15... Rb8 {[%clk 0:02:13.2]} 16. Qa6 {[%clk 0:01:19.3]} 16... Nxd4
{[%clk 0:02:13.2]} 17. cxd4 {[%clk 0:00:52.1]} 17... Qxd4 {[%clk 0:02:14.1]} 18.
Qc6+ {[%clk 0:00:38.5]} 18... Kf8 {[%clk 0:02:14.1]} 19. a3 {[%clk 0:00:05.4]}
19... Rd8 {[%clk 0:01:46.1]} 20. Rf1 {[%clk 0:00:03.9]} 20... Bc5 {[%clk
0:01:46.3]} 21. Bd2 {[%clk 0:00:01.3]} 21... Qxd2# {[%clk 0:01:46.3]} 0-1

[Event "Late-Titled-Tuesday-Blitz-April-16-2024"]
[Site "Chess.com"]
[Date "2024.04.16"]
[Round "10"]
[White "Durarbayli"]
[Black "Oleksandr_Bortnyk"]
[Result "1-0"]
[WhiteElo "2916"]
[BlackElo "3051"]
[TimeControl "180+1"]
[EndTime "15:52:33 PDT"]
[Termination "Durarbayli won by resignation"]

1. e4 {[%clk 0:03:00.9]} 1... Nf6 {[%clk 0:03:00.3]} 2. e5 {[%clk 0:03:01.6]}
2... Nd5 {[%clk 0:03:00.9]} 3. d4 {[%clk 0:03:02.2]} 3... d6 {[%clk 0:03:01.5]}
4. c4 {[%clk 0:03:02.4]} 4... Nb6 {[%clk 0:03:01.8]} 5. exd6 {[%clk 0:03:02.5]}
5... exd6 {[%clk 0:03:02.7]} 6. Nc3 {[%clk 0:03:02.6]} 6... Be7 {[%clk
0:03:03.4]} 7. Bd3 {[%clk 0:03:03.1]} 7... O-O {[%clk 0:03:03.9]} 8. Nge2 {[%clk
0:03:03.5]} 8... c6 {[%clk 0:03:04.7]} 9. Qc2 {[%clk 0:03:01.9]} 9... g6 {[%clk
0:03:02.7]} 10. h4 {[%clk 0:03:01.9]} 10... Na6 {[%clk 0:03:01.1]} 11. a3 {[%clk
0:02:59.9]} 11... Bxh4 {[%clk 0:01:06.5]} 12. Qd2 {[%clk 0:02:59.1]} 12... h5
{[%clk 0:01:06.2]} 13. Qh6 {[%clk 0:02:47.1]} 13... Re8 {[%clk 0:00:59.9]} 14.
Bxg6 {[%clk 0:02:24.6]} 14... Qf6 {[%clk 0:00:38.6]} 15. Bh7+ {[%clk 0:02:19.2]}
15... Kh8 {[%clk 0:00:38.5]} 16. Qxh5 {[%clk 0:01:44.3]} 16... Qxf2+ {[%clk
0:00:26.8]} 17. Kd1 {[%clk 0:01:42.6]} 17... Bg4 {[%clk 0:00:16.1]} 18. Qxg4
{[%clk 0:01:37.7]} 18... Nxc4 {[%clk 0:00:13.3]} 19. Bd3 {[%clk 0:01:21]} 1-0

[Event "Late-Titled-Tuesday-Blitz-April-16-2024"]
[Site "Chess.com"]
[Date "2024.04.16"]
[Round "10"]
[White "ExchangeAB"]
[Black "Sjakkerntobi"]
[Result "0-1"]
[WhiteElo "2396"]
[BlackElo "2524"]
[TimeControl "180+1"]
[EndTime "15:52:59 PDT"]
[Termination "Sjakkerntobi won by resignation"]

1. d4 {[%clk 0:03:00.9]} 1... d5 {[%clk 0:02:59.1]} 2. Nf3 {[%clk 0:03:01.5]}
2... e6 {[%clk 0:02:59.6]} 3. Bf4 {[%clk 0:03:01.3]} 3... Be7 {[%clk 0:02:56.9]}
4. e3 {[%clk 0:03:01.7]} 4... h5 {[%clk 0:02:57.2]} 5. h3 {[%clk 0:03:01.1]}
5... g5 {[%clk 0:02:53.3]} 6. Be5 {[%clk 0:02:59.8]} 6... f6 {[%clk 0:02:50.5]}
7. Bh2 {[%clk 0:02:59.6]} 7... g4 {[%clk 0:02:50.6]} 8. Nfd2 {[%clk 0:02:58.6]}
8... f5 {[%clk 0:02:46]} 9. Be5 {[%clk 0:02:51.9]} 9... Rh6 {[%clk 0:02:43.4]}
10. hxg4 {[%clk 0:02:50.9]} 10... hxg4 {[%clk 0:02:43.7]} 11. Rxh6 {[%clk
0:02:49.6]} 11... Nxh6 {[%clk 0:02:44.6]} 12. Nc3 {[%clk 0:02:45.6]} 12... Nd7
{[%clk 0:02:43.7]} 13. Bf4 {[%clk 0:02:44.3]} 13... Nf7 {[%clk 0:02:42.6]} 14.
Nb5 {[%clk 0:02:43.4]} 14... Nd6 {[%clk 0:02:42.2]} 15. Nxd6+ {[%clk 0:02:41.3]}
15... cxd6 {[%clk 0:02:43]} 16. c3 {[%clk 0:02:36.9]} 16... e5 {[%clk
0:02:42.6]} 17. Bh2 {[%clk 0:02:28.2]} 17... Qb6 {[%clk 0:02:42.5]} 18. Qb3
{[%clk 0:02:27.2]} 18... Qxb3 {[%clk 0:02:33.5]} 19. axb3 {[%clk 0:02:26.9]}
19... Kf7 {[%clk 0:02:31]} 20. c4 {[%clk 0:02:25.9]} 20... exd4 {[%clk
0:02:23.1]} 21. exd4 {[%clk 0:02:23.9]} 21... Nf6 {[%clk 0:02:18.5]} 22. cxd5
{[%clk 0:02:21.6]} 22... Nxd5 {[%clk 0:02:18.8]} 23. Bc4 {[%clk 0:02:19.8]}
23... Be6 {[%clk 0:02:18.7]} 24. O-O-O {[%clk 0:02:16.8]} 24... Nb4 {[%clk
0:02:18.3]} 25. Bxe6+ {[%clk 0:02:08.6]} 25... Kxe6 {[%clk 0:02:19.2]} 26. Re1+
{[%clk 0:02:07.6]} 26... Kd7 {[%clk 0:02:19.4]} 27. Kb1 {[%clk 0:02:03.6]} 27...
b5 {[%clk 0:02:12.9]} 28. Nf1 {[%clk 0:01:39]} 28... Nd3 {[%clk 0:02:04.5]} 29.
Re2 {[%clk 0:01:38.1]} 29... Rc8 {[%clk 0:02:04.4]} 30. Rc2 {[%clk 0:01:17.2]}
30... Rxc2 {[%clk 0:02:00.3]} 31. Kxc2 {[%clk 0:01:18.1]} 31... Ne1+ {[%clk
0:02:00.9]} 32. Kc3 {[%clk 0:01:03.9]} 32... Nxg2 {[%clk 0:02:01.8]} 33. Kb4
{[%clk 0:00:57]} 33... Kc6 {[%clk 0:01:59.4]} 34. Ka5 {[%clk 0:00:55.2]} 34...
d5 {[%clk 0:01:55.4]} 35. Ka6 {[%clk 0:00:52.1]} 35... Bh4 {[%clk 0:01:51.5]}
36. Bg3 {[%clk 0:00:47.3]} 36... f4 {[%clk 0:01:49.3]} 37. Bxh4 {[%clk
0:00:47.1]} 37... Nxh4 {[%clk 0:01:50.2]} 38. Kxa7 {[%clk 0:00:44.8]} 38... Nf3
{[%clk 0:01:50.4]} 39. b4 {[%clk 0:00:37.3]} 39... Nxd4 {[%clk 0:01:50.2]} 40.
Ka6 {[%clk 0:00:36.7]} 40... Nf5 {[%clk 0:01:45.8]} 41. Nd2 {[%clk 0:00:35.9]}
41... g3 {[%clk 0:01:45.2]} 42. fxg3 {[%clk 0:00:34.3]} 42... fxg3 {[%clk
0:01:46.1]} 43. Nf3 {[%clk 0:00:34.6]} 43... d4 {[%clk 0:01:41.9]} 44. Ne5+
{[%clk 0:00:33.1]} 44... Kd5 {[%clk 0:01:42.2]} 45. Nf3 {[%clk 0:00:34]} 45...
g2 {[%clk 0:01:42.2]} 46. Kxb5 {[%clk 0:00:33.6]} 46... d3 {[%clk 0:01:41]} 47.
Ka6 {[%clk 0:00:31.5]} 47... d2 {[%clk 0:01:39.6]} 48. Nxd2 {[%clk 0:00:30.7]}
48... g1=Q {[%clk 0:01:39.5]} 0-1

[Event "Late-Titled-Tuesday-Blitz-April-16-2024"]
[Site "Chess.com"]
[Date "2024.04.16"]
[Round "10"]
[White "HansOnTwitch"]
[Black "Mops_2004"]
[Result "1-0"]
[WhiteElo "3147"]
[BlackElo "2824"]
[TimeControl "180+1"]
[EndTime "15:53:02 PDT"]
[Termination "HansOnTwitch won by resignation"]

1. e4 {[%clk 0:02:57.6]} 1... g6 {[%clk 0:02:59.8]} 2. d4 {[%clk 0:02:57]} 2...
Bg7 {[%clk 0:03:00]} 3. Nc3 {[%clk 0:02:57.1]} 3... d6 {[%clk 0:03:00.5]} 4. Be2
{[%clk 0:02:56.5]} 4... Nc6 {[%clk 0:02:57.4]} 5. Nf3 {[%clk 0:02:55.3]} 5...
Bg4 {[%clk 0:02:55.4]} 6. Be3 {[%clk 0:02:55.3]} 6... e5 {[%clk 0:02:52.5]} 7.
dxe5 {[%clk 0:02:55.7]} 7... dxe5 {[%clk 0:02:51]} 8. Qxd8+ {[%clk 0:02:53.6]}
8... Rxd8 {[%clk 0:02:50.7]} 9. Nd5 {[%clk 0:02:53.6]} 9... Rd7 {[%clk
0:02:51.1]} 10. h3 {[%clk 0:02:51.4]} 10... Bxf3 {[%clk 0:02:42.4]} 11. Bxf3
{[%clk 0:02:52.3]} 11... Nf6 {[%clk 0:02:36.2]} 12. c3 {[%clk 0:02:47.6]} 12...
a6 {[%clk 0:02:27.2]} 13. O-O-O {[%clk 0:02:45.5]} 13... Nxd5 {[%clk 0:02:24.8]}
14. Rxd5 {[%clk 0:02:41.3]} 14... Ne7 {[%clk 0:02:13.6]} 15. Rxd7 {[%clk
0:02:38.7]} 15... Kxd7 {[%clk 0:02:13.9]} 16. Rd1+ {[%clk 0:02:39.3]} 16... Kc8
{[%clk 0:01:54.4]} 17. Be2 {[%clk 0:01:58.6]} 17... Rd8 {[%clk 0:01:49.2]} 18.
Bc4 {[%clk 0:01:58.3]} 18... Rxd1+ {[%clk 0:01:48.8]} 19. Kxd1 {[%clk
0:01:59.2]} 19... f6 {[%clk 0:01:41.7]} 20. Be6+ {[%clk 0:01:59]} 20... Kd8
{[%clk 0:01:41.8]} 21. h4 {[%clk 0:01:57.1]} 21... Nc8 {[%clk 0:01:38.4]} 22.
Ke2 {[%clk 0:01:50.2]} 22... Nd6 {[%clk 0:01:36.5]} 23. Kd3 {[%clk 0:01:50.5]}
23... Ke7 {[%clk 0:01:35.4]} 24. Bg8 {[%clk 0:01:50.6]} 24... h5 {[%clk
0:01:35.1]} 25. f3 {[%clk 0:01:36]} 25... Kf8 {[%clk 0:01:28.7]} 26. Bb3 {[%clk
0:01:32.6]} 26... f5 {[%clk 0:01:11.7]} 27. c4 {[%clk 0:01:32.2]} 27... Bf6
{[%clk 0:01:03.7]} 28. c5 {[%clk 0:01:30.5]} 28... Nb5 {[%clk 0:00:57.3]} 29.
exf5 {[%clk 0:01:21.5]} 29... gxf5 {[%clk 0:00:57.5]} 30. Be6 {[%clk 0:01:21.4]}
30... Bxh4 {[%clk 0:00:20.4]} 31. Bxf5 {[%clk 0:01:21.1]} 31... Kf7 {[%clk
0:00:19.3]} 32. Bc8 {[%clk 0:01:20.6]} 1-0

[Event "Late-Titled-Tuesday-Blitz-April-16-2024"]
[Site "Chess.com"]
[Date "2024.04.16"]
[Round "10"]
[White "FMYiLiu"]
[Black "AlphaGoosee"]
[Result "1-0"]
[WhiteElo "2482"]
[BlackElo "2565"]
[TimeControl "180+1"]
[EndTime "15:53:09 PDT"]
[Termination "FMYiLiu won by resignation"]

1. d4 {[%clk 0:03:00.9]} 1... d5 {[%clk 0:03:00.2]} 2. Nf3 {[%clk 0:03:01.1]}
2... Nf6 {[%clk 0:03:00.6]} 3. c3 {[%clk 0:03:01]} 3... g6 {[%clk 0:02:59.7]} 4.
Bf4 {[%clk 0:02:59.6]} 4... Bg7 {[%clk 0:02:59.9]} 5. Nbd2 {[%clk 0:03:00.2]}
5... O-O {[%clk 0:03:00.8]} 6. e3 {[%clk 0:03:00.7]} 6... b6 {[%clk 0:03:01.3]}
7. Ne5 {[%clk 0:03:00.4]} 7... Bb7 {[%clk 0:03:01.4]} 8. h4 {[%clk 0:03:00.9]}
8... Nbd7 {[%clk 0:02:59.2]} 9. h5 {[%clk 0:03:01.4]} 9... Nxh5 {[%clk 0:02:59]}
10. Rxh5 {[%clk 0:03:01.2]} 10... gxh5 {[%clk 0:02:59.1]} 11. Qxh5 {[%clk
0:03:01.3]} 11... f5 {[%clk 0:02:41.1]} 12. Bd3 {[%clk 0:02:58]} 12... e6 {[%clk
0:02:36]} 13. O-O-O {[%clk 0:02:55.3]} 13... Nxe5 {[%clk 0:02:33.9]} 14. dxe5
{[%clk 0:02:54.7]} 14... Qe8 {[%clk 0:02:32.5]} 15. Qh2 {[%clk 0:02:51.7]} 15...
Qg6 {[%clk 0:02:16.3]} 16. g4 {[%clk 0:02:47.6]} 16... Kh8 {[%clk 0:02:11.3]}
17. Rg1 {[%clk 0:02:39.4]} 17... Qf7 {[%clk 0:02:01.3]} 18. Nf3 {[%clk
0:02:37.2]} 18... d4 {[%clk 0:01:56.7]} 19. Ng5 {[%clk 0:02:34.8]} 19... Qg8
{[%clk 0:01:49.6]} 20. exd4 {[%clk 0:02:02.1]} 20... Be4 {[%clk 0:01:40.3]} 21.
Nxe4 {[%clk 0:01:55.5]} 21... fxe4 {[%clk 0:01:37.2]} 22. Bxe4 {[%clk
0:01:56.4]} 22... Rxf4 {[%clk 0:01:28.9]} 23. Qxf4 {[%clk 0:01:53.6]} 23... Rf8
{[%clk 0:01:27.1]} 24. Qe3 {[%clk 0:01:51.2]} 24... Qf7 {[%clk 0:01:19.7]} 25.
Rh1 {[%clk 0:01:33.5]} 25... Qxf2 {[%clk 0:01:15.6]} 26. Qxf2 {[%clk 0:01:26]}
26... Rxf2 {[%clk 0:01:16.5]} 27. Bxh7 {[%clk 0:01:26.9]} 27... Bf8 {[%clk
0:01:16.6]} 28. Bf5+ {[%clk 0:01:24.7]} 28... Kg7 {[%clk 0:01:15.7]} 29. Bxe6
{[%clk 0:01:21.1]} 29... c5 {[%clk 0:01:16]} 30. Bf5 {[%clk 0:01:14.9]} 30...
cxd4 {[%clk 0:01:13.4]} 31. cxd4 {[%clk 0:01:15.3]} 31... Rf4 {[%clk 0:01:10]}
32. d5 {[%clk 0:01:09.2]} 32... Kg8 {[%clk 0:01:07.2]} 33. d6 {[%clk 0:01:07.6]}
33... Rd4 {[%clk 0:01:03.5]} 34. Rd1 {[%clk 0:01:05.3]} 34... Rxd1+ {[%clk
0:01:01.6]} 35. Kxd1 {[%clk 0:01:05.5]} 35... Kf7 {[%clk 0:01:01.4]} 36. Ke2
{[%clk 0:01:02.5]} 36... Ke8 {[%clk 0:00:57.8]} 37. Kd3 {[%clk 0:01:02.4]} 37...
Bh6 {[%clk 0:00:57.4]} 38. Ke4 {[%clk 0:01:02]} 38... Kd8 {[%clk 0:00:56.8]} 39.
Kd5 {[%clk 0:01:02]} 39... Bf4 {[%clk 0:00:57.1]} 40. e6 {[%clk 0:01:02.1]}
40... Bg5 {[%clk 0:00:57]} 41. b4 {[%clk 0:01:00.8]} 41... Be7 {[%clk
0:00:57.9]} 42. dxe7+ {[%clk 0:01:00]} 42... Kxe7 {[%clk 0:00:58.8]} 43. b5
{[%clk 0:01:00.5]} 1-0

[Event "Late-Titled-Tuesday-Blitz-April-16-2024"]
[Site "Chess.com"]
[Date "2024.04.16"]
[Round "10"]
[White "Ykow"]
[Black "Vladimir_2020"]
[Result "0-1"]
[WhiteElo "2571"]
[BlackElo "2774"]
[TimeControl "180+1"]
[EndTime "15:53:14 PDT"]
[Termination "Vladimir_2020 won by resignation"]

1. e4 {[%clk 0:02:59.8]} 1... e5 {[%clk 0:02:44.3]} 2. Nf3 {[%clk 0:02:59.7]}
2... Nc6 {[%clk 0:02:43.8]} 3. Bc4 {[%clk 0:02:59.7]} 3... Bc5 {[%clk
0:02:43.1]} 4. d3 {[%clk 0:02:56.3]} 4... Nf6 {[%clk 0:02:42.4]} 5. h3 {[%clk
0:02:56.2]} 5... h6 {[%clk 0:02:41.5]} 6. a3 {[%clk 0:02:50.2]} 6... d6 {[%clk
0:02:39]} 7. b4 {[%clk 0:02:45]} 7... Bb6 {[%clk 0:02:38.3]} 8. Be3 {[%clk
0:02:44.9]} 8... O-O {[%clk 0:02:36.7]} 9. O-O {[%clk 0:02:44.5]} 9... Ne7
{[%clk 0:02:19.8]} 10. Nbd2 {[%clk 0:02:39]} 10... Ng6 {[%clk 0:02:19.6]} 11.
Bb3 {[%clk 0:02:37.5]} 11... c6 {[%clk 0:02:18.7]} 12. Bxb6 {[%clk 0:02:31.6]}
12... axb6 {[%clk 0:02:18.1]} 13. d4 {[%clk 0:02:32]} 13... b5 {[%clk
0:02:05.3]} 14. dxe5 {[%clk 0:02:16.9]} 14... dxe5 {[%clk 0:02:02.4]} 15. Qe2
{[%clk 0:02:17.4]} 15... Qe7 {[%clk 0:01:57.6]} 16. Qe3 {[%clk 0:02:12.6]} 16...
Be6 {[%clk 0:01:54.3]} 17. c4 {[%clk 0:02:01.7]} 17... Rfd8 {[%clk 0:01:41]} 18.
cxb5 {[%clk 0:01:59.6]} 18... cxb5 {[%clk 0:01:40.8]} 19. Bxe6 {[%clk 0:01:56]}
19... Qxe6 {[%clk 0:01:40.3]} 20. Qc5 {[%clk 0:01:40.7]} 20... Rac8 {[%clk
0:01:26.3]} 21. Qxb5 {[%clk 0:01:37.1]} 21... Rc2 {[%clk 0:01:26.1]} 22. Rfd1
{[%clk 0:01:29.4]} 22... Qd6 {[%clk 0:01:17.5]} 23. Qa4 {[%clk 0:01:22.3]} 23...
Qc7 {[%clk 0:01:16.8]} 24. Nf1 {[%clk 0:01:20.4]} 24... Rxd1 {[%clk 0:01:11.5]}
25. Rxd1 {[%clk 0:01:21.3]} 25... Nxe4 {[%clk 0:01:07.7]} 26. Qe8+ {[%clk
0:01:12.1]} 26... Kh7 {[%clk 0:01:06.8]} 27. Rd8 {[%clk 0:00:48.5]} 27... Nf6
{[%clk 0:01:04.8]} 28. Qa4 {[%clk 0:00:41.4]} 28... Rxf2 {[%clk 0:00:54.8]} 29.
Kxf2 {[%clk 0:00:37.9]} 29... Qxd8 {[%clk 0:00:54.9]} 30. Qb5 {[%clk 0:00:38.6]}
30... e4 {[%clk 0:00:49.3]} 31. N3d2 {[%clk 0:00:39]} 31... Qd4+ {[%clk
0:00:49.2]} 32. Ke1 {[%clk 0:00:39.7]} 32... Ne5 {[%clk 0:00:45]} 0-1